bitfinex/quotes_SOLUSD_20240826
["timestamp","ask_amount","ask_price","bid_price","bid_amount"]
[1724649803171,1.09288009,160.48,160.42,12.67685218]
[1724649805792,16.2807,160.5,160.44,11.85121468]
[1724649807186,16.2807,160.5,160.45,1.24636332]
[1724649807391,16.2807,160.5,160.46,11.85121468]
[1724649809399,16.2807,160.5,160.48,11.85121468]
[1724649815318,16.2807,160.5,160.46,11.85121468]
[1724649817910,16.2807,160.5,160.43,3.87708248]
[1724649817911,16.2807,160.5,160.48,11.85121468]
[1724649826520,16.2807,160.5,160.43,1.24778459]
[1724649826734,16.2807,160.5,160.46,11.85121468]
[1724649830058,1.09288009,160.49,160.45,1.24779142]
[1724649830233,1.09288009,160.49,160.44,19.62315371]
[1724649830421,1.09288009,160.49,160.44,18.37536229]
[1724649830622,16.2807,160.5,160.44,18.37536229]
[1724649831229,16.2807,160.5,160.44,11.85121468]
[1724649831535,16.2807,160.5,160.45,1.24622417]
[1724649831856,16.2807,160.5,160.46,11.85121468]
[1724649835045,16.2807,160.5,160.45,1.24791849]
[1724649835552,22.5112,160.5,160.44,7.77278146]
[1724649835760,7.32378009,160.49,160.43,7.77278146]
[1724649835942,7.32378009,160.49,160.44,7.77278146]
[1724649836133,1.09288009,160.48,160.43,6.52486297]
[1724649836333,1.09288009,160.48,160.44,6.52486297]
[1724649836561,1.09288009,160.48,160.43,6.52486297]
[1724649838372,1.09288009,160.49,160.44,11.85121468]
[1724649838666,16.2807,160.5,160.44,18.37607765]
[1724649838885,16.2807,160.5,160.44,11.85121468]
[1724649839041,1.09288009,160.49,160.44,11.85121468]
[1724649840339,23.60408009,160.5,160.44,11.85121468]
[1724649841367,1.09288009,160.49,160.44,6.52486297]
[1724649841866,22.5112,160.5,160.43,18.37607765]
[1724649842228,22.5112,160.5,160.44,6.52486297]
[1724649842557,22.5112,160.5,160.43,18.37607765]
[1724649843264,16.2807,160.5,160.45,11.85121468]
[1724649843560,17.37358009,160.5,160.44,6.52486297]
[1724649843763,16.2807,160.5,160.45,11.85121468]
[1724649844865,16.2807,160.5,160.45,18.37610712]
[1724649845059,16.2807,160.5,160.45,11.85121468]
[1724649845460,16.2807,160.5,160.45,18.37610712]
[1724649845758,16.2807,160.5,160.45,11.85121468]
[1724649846171,16.2807,160.5,160.45,18.37610712]
[1724649846383,16.2807,160.5,160.45,11.85121468]
[1724649846869,16.2807,160.5,160.45,18.37610712]
[1724649847052,16.2807,160.5,160.42,0.8256375]
[1724649847053,19.48059477,160.49,160.43,6.52486284]
[1724649847262,15.3606,160.47,160.44,6.52486284]
[1724649847559,1.09288009,160.46,160.43,6.52486284]
[1724649847967,1.09288009,160.46,160.42,0.8256375]
[1724649848346,1.09288009,160.46,160.42,7.35050034]
[1724649848547,1.09288009,160.46,160.43,6.52486284]
[1724649849452,1.09288009,160.46,160.42,0.8256375]
[1724649849948,1.09288009,160.46,160.42,7.35050034]
[1724649850163,1.09288009,160.46,160.42,0.8256375]
[1724649850680,1.09288009,160.46,160.42,7.35171499]
[1724649850996,1.09288009,160.46,160.42,0.8256375]
[1724649851377,15.3606,160.47,160.42,7.35171499]
[1724649851567,15.3606,160.47,160.42,0.8256375]
[1724649851972,15.3606,160.47,160.42,7.35171499]
[1724649852176,15.3606,160.47,160.42,0.8256375]
[1724649852964,15.3606,160.47,160.42,7.35171499]
[1724649853365,15.3606,160.47,160.42,0.8256375]
[1724649858470,18.38771468,160.49,160.34,6.50047622]
[1724649858471,16.0901,160.45,160.34,6.50047622]
[1724649858781,19.17699477,160.44,160.35,11.85121468]
[1724649859399,7.32578009,160.44,160.35,11.85121468]
[1724649861470,7.32578009,160.44,160.36,45.0]
[1724649865398,6.2333,160.43,160.36,45.0]
[1724649865579,1.09288009,160.42,160.36,45.0]
[1724649866678,1.09288009,160.42,160.35,11.85121468]
[1724649869305,15.4263,160.41,160.35,11.85121468]
[1724649871278,6.2346,160.4,160.32,1.24692443]
[1724649871501,6.2346,160.4,160.35,11.85121468]
[1724649871689,6.2346,160.4,160.36,1.24704744]
[1724649872096,6.2346,160.4,160.35,11.85121468]
[1724649872702,6.2346,160.4,160.36,1.24704931]
[1724649873303,6.2346,160.4,160.35,11.85121468]
[1724649884421,1.09288009,160.39,160.35,11.85121468]
[1724649885602,6.2346,160.4,160.35,11.85121468]
[1724649885926,1.09288009,160.39,160.35,11.85121468]
[1724649886547,1.09288009,160.39,160.3,2.46312096]
[1724649886818,1.09288009,160.39,160.34,11.85121468]
[1724649889030,1.09288009,160.39,160.3,45.0]
[1724649889232,6.2346,160.4,160.34,11.85121468]
[1724649893627,6.2346,160.4,160.29,9.39452427]
[1724649893628,16.0216,160.39,160.31,1.24712324]
[1724649893828,17.11448009,160.39,160.33,11.85121468]
[1724649894025,16.0216,160.39,160.33,11.85121468]
[1724649894228,17.11448009,160.39,160.33,11.85121468]
[1724649898220,23.34938009,160.39,160.33,13.09996698]
[1724649898419,23.34938009,160.39,160.33,11.85121468]
[1724649899540,23.34938009,160.39,160.32,1.24880319]
[1724649899837,22.2564,160.39,160.32,11.85121468]
[1724649900223,1.09288009,160.38,160.33,1.24880319]
[1724649901245,1.09288009,160.38,160.34,1.24880319]
[1724649901447,1.09288009,160.38,160.33,1.24880319]
[1724649901620,1.09288009,160.38,160.34,1.24880319]
[1724649901821,1.09288009,160.38,160.33,1.24880319]
[1724649902045,1.09288009,160.38,160.32,11.85121468]
[1724649902247,1.09288009,160.38,160.33,1.24883033]
[1724649902449,1.09288009,160.38,160.32,11.85121468]
[1724649902626,1.09288009,160.38,160.33,1.24883033]
[1724649902819,1.09288009,160.38,160.32,11.85121468]
[1724649903024,22.2564,160.39,160.33,1.24883049]
[1724649903249,22.2564,160.39,160.32,11.85121468]
[1724649903428,22.2564,160.39,160.33,1.24883016]
[1724649903936,1.09288009,160.38,160.33,1.24883016]
[1724649905448,1.09288009,160.38,160.32,11.85121468]
[1724649905747,1.09288009,160.38,160.33,1.24883033]
[1724649908850,17.11448009,160.39,160.33,1.24883033]
[1724649910234,17.11448009,160.39,160.34,1.24883033]
[1724649910442,17.11448009,160.39,160.31,11.85121468]
[1724649910652,17.11448009,160.39,160.32,1.24883033]
[1724649910945,16.0216,160.39,160.33,1.24883033]
[1724649911138,16.0216,160.39,160.32,1.24883033]
[1724649911329,1.09288009,160.38,160.32,1.24883033]
[1724649911938,1.09288009,160.38,160.31,11.85121468]
[1724649912129,1.09288009,160.38,160.32,1.24887576]
[1724649914451,1.09288009,160.38,160.31,11.85121468]
[1724649915039,1.09288009,160.38,160.31,13.10009044]
[1724649915255,1.09288009,160.38,160.32,1.24894062]
[1724649915431,22.2564,160.39,160.32,1.24894062]
[1724649916161,22.2564,160.39,160.31,11.85121468]
[1724649916650,16.0216,160.39,160.32,1.24733954]
[1724649917048,16.0216,160.39,160.31,11.85121468]
[1724649917554,17.11448009,160.39,160.29,1.24893485]
[1724649917853,23.34928009,160.39,160.32,11.85121468]
[1724649924252,23.34928009,160.39,160.29,6.5305833]
[1724649924454,23.34928009,160.39,160.31,11.85121468]
[1724649924652,23.34928009,160.39,160.31,18.38179798]
[1724649924871,23.34928009,160.39,160.31,11.85121468]
[1724649926439,23.34928009,160.39,160.34,6.2366]
[1724649928063,17.11448009,160.39,160.35,6.2362]
[1724649928243,23.34928009,160.39,160.34,6.2367]
[1724649928651,17.11448009,160.39,160.28,45.0]
[1724649928853,6.2356,160.37,160.28,45.0]
[1724649929051,1.09288009,160.36,160.29,11.85121468]
[1724649929252,1.09288009,160.36,160.3,45.0]
[1724649929965,1.09288009,160.36,160.27,27.80583891]
[1724649930153,15.938,160.35,160.29,11.85121468]
[1724649930355,1.09288009,160.34,160.32,6.2373]
[1724649930551,1.09288009,160.34,160.27,20.0]
[1724649930552,22.3407,160.33,160.27,20.0]
[1724649930765,1.09288009,160.32,160.28,1.56150283]
[1724649930940,1.09288009,160.32,160.29,1.56150283]
[1724649931146,1.09288009,160.32,160.3,1.56150283]
[1724649931355,28.578,160.33,160.26,13.92460375]
[1724649931572,28.578,160.33,160.26,12.67685218]
[1724649932147,1.09288009,160.32,160.26,12.67685218]
[1724649933168,7.33038009,160.32,160.26,12.67685218]
[1724649933470,7.33038009,160.32,160.26,0.8256375]
[1724649933882,6.2383,160.3,160.26,0.8256375]
[1724649934047,1.09288009,160.29,160.26,0.8256375]
[1724649935064,6.5962,160.27,160.26,0.8256375]
[1724649935250,7.68908009,160.27,160.26,0.8256375]
[1724649935868,25.77969477,160.27,160.26,0.8256375]
[1724649936098,25.77969477,160.27,160.18,11.85121468]
[1724649936099,19.54029477,160.27,160.18,11.85121468]
[1724649936289,7.33298009,160.26,160.18,11.85121468]
[1724649936515,1.09288009,160.26,160.2,11.85121468]
[1724649937147,1.09288009,160.26,160.16,7.81046029]
[1724649937349,1.09288009,160.26,160.2,11.85121468]
[1724649938403,1.09288009,160.26,160.18,11.85121468]
[1724649938717,7.33278009,160.26,160.18,11.85121468]
[1724649939492,7.33278009,160.26,160.2,11.85121468]
[1724649939874,7.33278009,160.26,160.18,11.85121468]
[1724649940306,11.85121468,160.23,160.15,3.88362795]
[1724649940515,1.09288009,160.22,160.16,11.85121468]
[1724649940809,1.09288009,160.22,160.1,16.1405375]
[1724649940810,1.09288009,160.22,160.18,11.85121468]
[1724649941014,16.6628,160.24,160.18,11.85121468]
[1724649941015,1.09288009,160.23,160.18,11.85121468]
[1724649941586,1.09288009,160.23,160.1,16.1405375]
[1724649941587,6.2417,160.22,160.1,16.1405375]
[1724649941789,1.09288009,160.21,160.16,11.85121468]
[1724649941986,1.09288009,160.23,160.16,11.85121468]
[1724649942201,1.09288009,160.23,160.17,45.0]
[1724649942396,16.6628,160.24,160.21,11.85121468]
[1724649942576,16.6628,160.24,160.17,45.0]
[1724649942792,16.6628,160.24,160.22,11.85121468]
[1724649943820,16.3546,160.28,160.22,11.85121468]
[1724649944003,16.3546,160.28,160.24,11.85121468]
[1724649947898,17.44748009,160.28,160.22,11.85121468]
[1724649948119,16.3546,160.28,160.19,1.24820496]
[1724649948304,16.3546,160.28,160.19,21.24820496]
[1724649948499,16.3546,160.28,160.2,11.85121468]
[1724649948902,17.44748009,160.28,160.22,11.85121468]
[1724649950304,23.68658009,160.28,160.19,20.0]
[1724649950521,23.68658009,160.28,160.21,11.85121468]
[1724649952041,17.44748009,160.28,160.21,11.85121468]
[1724649952519,17.44748009,160.28,160.23,11.85121468]
[1724649953607,17.44748009,160.28,160.18,20.0]
[1724649953821,17.44748009,160.28,160.23,11.85121468]
[1724649955639,16.3546,160.28,160.23,11.85121468]
[1724649956041,16.3546,160.28,160.2,3.88303297]
[1724649956218,17.44748009,160.28,160.22,11.85121468]
[1724649956402,16.3546,160.28,160.24,11.85121468]
[1724649957018,16.3546,160.28,160.21,45.0]
[1724649957213,17.44748009,160.28,160.22,11.85121468]
[1724649960752,17.44748009,160.28,160.21,45.0]
[1724649961046,17.44748009,160.28,160.22,11.85121468]
[1724649961626,17.44748009,160.28,160.21,45.0]
[1724649961926,17.44748009,160.28,160.22,11.85121468]
[1724649962861,16.3546,160.28,160.24,11.85121468]
[1724649967974,16.3546,160.28,160.21,45.0]
[1724649968272,17.44748009,160.28,160.22,11.85121468]
[1724649969238,17.44748009,160.28,160.21,45.0]
[1724649969440,17.44748009,160.28,160.21,56.85121468]
[1724649970136,23.68648009,160.28,160.21,56.85121468]
[1724649970541,17.44748009,160.28,160.21,56.85121468]
[1724649972459,17.44748009,160.28,160.22,3.88338811]
[1724649973063,17.44748009,160.28,160.22,3.88338744]
[1724649973263,17.44748009,160.28,160.21,56.85121468]
[1724649973450,17.44748009,160.28,160.22,3.88347592]
[1724649974140,17.44748009,160.28,160.18,3.88347592]
[1724649974337,6.2395,160.27,160.19,15.7346906]
[1724649974556,1.09288009,160.26,160.19,15.7346906]
[1724649974748,1.09288009,160.26,160.2,3.88347592]
[1724649975154,1.09288009,160.26,160.2,3.88403927]
[1724649976580,1.09288009,160.26,160.21,3.88403927]
[1724649976742,1.09288009,160.26,160.2,3.88403927]
[1724649976941,1.09288009,160.26,160.21,3.88403927]
[1724649977141,1.09288009,160.26,160.2,3.88403927]
[1724649977339,1.09288009,160.26,160.21,3.88403927]
[1724649977582,1.09288009,160.26,160.19,11.85121468]
[1724649977815,1.09288009,160.26,160.2,3.88397992]
[1724649977994,1.09288009,160.26,160.21,3.88406577]
[1724649978172,1.09288009,160.26,160.2,1.24982851]
[1724649978374,1.09288009,160.26,160.21,3.88404296]
[1724649978602,1.09288009,160.26,160.2,1.24982863]
[1724649978795,16.4143,160.25,160.21,3.8840092]
[1724649978974,1.09288009,160.24,160.2,1.24982863]
[1724649979182,1.09288009,160.24,160.21,3.88412862]
[1724649979408,1.09288009,160.24,160.18,5.13395725]
[1724649979576,1.09288009,160.24,160.19,5.13395725]
[1724649979780,1.09288009,160.24,160.2,3.88412862]
[1724649979984,1.09288009,160.24,160.17,11.85121468]
[1724649980190,1.09288009,160.24,160.18,3.88431279]
[1724649980503,16.4143,160.25,160.21,11.85121468]
[1724649980714,16.4143,160.25,160.22,3.88431279]
[1724649981045,16.4143,160.25,160.21,11.85121468]
[1724649981400,16.4143,160.25,160.23,11.85121468]
[1724649981640,22.705,160.29,160.24,3.88398024]
[1724649981780,22.705,160.29,160.23,11.85121468]
[1724649981978,22.705,160.29,160.24,3.88326994]
[1724649982185,22.705,160.29,160.23,11.85121468]
[1724649982510,22.705,160.29,160.24,3.88326389]
[1724649982704,22.705,160.29,160.25,3.88326389]
[1724649983011,22.705,160.29,160.23,11.85121468]
[1724649983185,22.705,160.29,160.24,3.88323856]
[1724649983513,1.09288009,160.28,160.25,3.88323856]
[1724649983675,1.09288009,160.28,160.23,11.85121468]
[1724649983882,1.09288009,160.28,160.24,3.88326862]
[1724649984092,1.09288009,160.28,160.23,11.85121468]
[1724649984496,1.09288009,160.28,160.24,3.88326876]
[1724649984803,1.09288009,160.28,160.23,11.85121468]
[1724649985001,1.09288009,160.28,160.24,3.88326819]
[1724649985181,1.09288009,160.28,160.23,11.85121468]
[1724649985380,1.09288009,160.28,160.24,3.88326804]
[1724649985593,1.09288009,160.28,160.19,7.81001277]
[1724649985792,1.09288009,160.28,160.23,11.85121468]
[1724649986086,1.09288009,160.28,160.24,3.8832967]
[1724649986306,1.09288009,160.28,160.23,11.85121468]
[1724649986500,1.09288009,160.28,160.24,3.88328336]
[1724649986709,1.09288009,160.28,160.23,11.85121468]
[1724649987003,1.09288009,160.28,160.24,3.88329782]
[1724649987213,1.09288009,160.28,160.23,11.85121468]
[1724649987498,1.09288009,160.28,160.24,3.88329782]
[1724649987697,1.09288009,160.28,160.25,3.88329782]
[1724649987902,1.09288009,160.28,160.22,6.53432534]
[1724649988100,1.09288009,160.28,160.23,10.41774212]
[1724649988301,1.09288009,160.28,160.24,3.88341678]
[1724649988502,1.09288009,160.28,160.23,6.53432534]
[1724649988687,1.09288009,160.28,160.24,3.88341621]
[1724649988883,1.09288009,160.28,160.23,6.53432534]
[1724649989079,1.09288009,160.28,160.24,3.88341606]
[1724649989284,1.09288009,160.28,160.23,6.53432534]
[1724649989487,1.09288009,160.28,160.24,3.88341621]
[1724649989685,1.09288009,160.28,160.23,6.53432534]
[1724649989985,1.09288009,160.28,160.24,3.88341534]
[1724649990278,1.09288009,160.28,160.23,6.53432534]
[1724649990483,1.09288009,160.28,160.24,3.88341591]
[1724649990678,22.705,160.29,160.23,18.38554002]
[1724649990900,22.705,160.29,160.24,3.88330151]
[1724649991148,22.705,160.29,160.23,11.85121468]
[1724649991149,22.705,160.29,160.25,3.88330151]
[1724649991285,22.705,160.29,160.25,3.88327754]
[1724649991486,22.705,160.29,160.23,11.85121468]
[1724649991796,22.705,160.29,160.24,3.88327697]
[1724649991997,22.705,160.29,160.25,3.88327697]
[1724649992180,16.648,160.29,160.27,11.85121468]
[1724649992410,21.1453,160.33,160.27,11.85121468]
[1724649993105,1.09288009,160.32,160.27,11.85121468]
[1724649993485,1.09288009,160.32,160.27,18.384493]
[1724649993691,1.09288009,160.32,160.27,11.85121468]
[1724649994297,1.09288009,160.32,160.27,18.384493]
[1724649994504,1.09288009,160.32,160.27,11.85121468]
[1724649994732,21.1453,160.33,160.27,11.85121468]
[1724649995318,22.23818009,160.33,160.27,11.85121468]
[1724649996310,15.0898,160.33,160.28,1.56150901]
[1724649996495,15.0898,160.33,160.29,1.56150901]
[1724649996697,15.0898,160.33,160.3,1.56150901]
[1724649996892,15.0898,160.33,160.27,11.85121468]
[1724649997095,15.0898,160.33,160.28,1.56153246]
[1724649997411,1.09288009,160.32,160.29,1.56153246]
[1724649997711,1.09288009,160.32,160.27,11.85121468]
[1724649997915,1.09288009,160.32,160.25,13.06485146]
[1724649998095,1.09288009,160.32,160.26,56.85121468]
[1724649998503,1.09288009,160.32,160.26,11.85121468]
[1724649998722,15.0898,160.33,160.28,11.85121468]
[1724649998889,15.0898,160.33,160.29,1.56150092]
[1724649999089,15.0898,160.33,160.3,1.56150092]
[1724649999396,15.0898,160.33,160.28,11.85121468]
[1724649999714,15.0898,160.33,160.29,1.5614907]
[1724650000012,15.0898,160.33,160.3,1.5614907]
[1724650000214,15.0898,160.33,160.28,11.85121468]
[1724650000512,15.0898,160.33,160.29,1.56151461]
[1724650000815,15.0898,160.33,160.3,1.56150663]
[1724650001115,15.0898,160.33,160.26,11.85121468]
[1724650001419,1.09288009,160.32,160.26,11.85121468]
[1724650003405,7.33038009,160.32,160.26,11.85121468]
[1724650003602,7.33038009,160.32,160.24,11.85121468]
[1724650004126,12.3433,160.31,160.24,11.85121468]
[1724650004301,1.09288009,160.3,160.24,11.85121468]
[1724650004498,7.33128009,160.3,160.24,11.85121468]
[1724650004822,1.09288009,160.29,160.24,11.85121468]
[1724650006296,1.09288009,160.29,160.22,11.85121468]
[1724650006496,1.09288009,160.29,160.23,45.0]
[1724650008413,22.6146,160.28,160.21,11.85121468]
[1724650008727,1.09288009,160.27,160.21,11.85121468]
[1724650010632,7.33248009,160.27,160.18,6.53450236]
[1724650010811,1.09288009,160.26,160.2,11.85121468]
[1724650012512,7.33248009,160.27,160.2,11.85121468]
[1724650015629,22.6146,160.28,160.22,11.85121468]
[1724650016027,22.6146,160.28,160.23,1.24798636]
[1724650016220,7.33258009,160.27,160.19,45.0]
[1724650016418,1.09288009,160.27,160.19,11.85121468]
[1724650016623,6.2402,160.25,160.19,11.85121468]
[1724650016825,6.2402,160.25,160.18,45.0]
[1724650016826,1.09288009,160.24,160.18,45.0]
[1724650017127,7.33358009,160.24,160.17,11.85121468]
[1724650017333,1.09288009,160.23,160.17,11.85121468]
[1724650018231,6.3365,160.26,160.17,11.85121468]
[1724650018232,6.2403,160.25,160.17,11.85121468]
[1724650018431,6.2403,160.25,160.18,45.0]
[1724650019031,1.09288009,160.24,160.18,45.0]
[1724650019233,1.09288009,160.24,160.17,11.85121468]
[1724650019535,21.5467,160.23,160.17,11.85121468]
[1724650020635,21.5467,160.23,160.12,15.7721]
[1724650020636,1.09288009,160.22,160.12,15.7721]
[1724650020852,1.09288009,160.22,160.11,276.45579305]
[1724650020853,11.85121468,160.2,160.11,6.4787316]
[1724650021019,6.2438,160.16,160.1,0.8256375]
[1724650021523,15.875,160.15,160.1,0.8256375]
[1724650022229,16.96788009,160.15,160.1,0.8256375]
[1724650022629,1.09288009,160.14,160.1,0.8256375]
[1724650022819,6.2449,160.13,160.1,0.8256375]
[1724650023152,1.09288009,160.14,160.1,0.8256375]
[1724650023315,7.33738009,160.14,160.1,0.8256375]
[1724650027133,11.85121468,160.13,160.1,0.8256375]
[1724650027335,1.09288009,160.12,160.1,0.8256375]
[1724650027920,11.85121468,160.11,160.01,11.85121468]
[1724650028120,6.2469,160.08,159.95,23.69977833]
[1724650028342,22.2739,160.09,159.99,1.24969062]
[1724650028546,22.2739,160.09,160.0,11.85121468]
[1724650028743,6.2469,160.08,160.0,11.85121468]
[1724650029744,29.61328009,160.09,160.0,11.85121468]
[1724650030336,29.61328009,160.09,159.96,6.48522269]
[1724650030529,29.61328009,160.09,160.0,11.85121468]
[1724650030845,29.61328009,160.09,160.01,45.0]
[1724650031427,22.2739,160.09,160.04,11.85121468]
[1724650031835,22.2739,160.09,160.05,1.24947183]
[1724650032236,22.2739,160.09,160.04,11.85121468]
[1724650032442,22.2739,160.09,160.02,11.85121468]
[1724650032748,22.2739,160.09,160.03,45.0]
[1724650033854,22.2739,160.09,160.04,11.85121468]
[1724650035424,22.2739,160.09,160.03,45.0]
[1724650036347,1.09288009,160.08,160.03,45.0]
[1724650036524,1.09288009,160.08,159.96,6.48522269]
[1724650036734,1.09288009,160.07,159.96,6.48522269]
[1724650036935,7.34028009,160.07,159.96,6.48522269]
[1724650037228,1.09288009,160.07,159.96,6.48522269]
[1724650037443,7.34008009,160.07,159.98,11.85121468]
[1724650038284,7.34008009,160.07,159.96,6.48522269]
[1724650038285,40.27151468,160.06,159.96,6.48522269]
[1724650038503,1.09288009,160.05,159.96,18.33643737]
[1724650038768,22.1725,160.06,160.0,11.85121468]
[1724650039144,22.1725,160.06,159.96,6.48522269]
[1724650039352,34.02371468,160.06,159.96,11.85121468]
[1724650039674,1.09288009,160.05,159.96,11.85121468]
[1724650039982,7.34088009,160.05,159.96,11.85121468]
[1724650040348,6.248,160.05,159.96,11.85121468]
[1724650040556,6.248,160.05,159.97,1.25002983]
[1724650041068,22.1725,160.06,160.0,11.85121468]
[1724650041364,22.1725,160.06,160.02,11.85121468]
[1724650041766,11.85121468,160.04,159.94,0.8256375]
[1724650041973,7.34198009,160.03,159.94,12.67685218]
[1724650042870,6.2492,160.02,159.94,12.67685218]
[1724650043058,22.1725,160.0,159.94,0.8256375]
[1724650043368,1.09288009,159.99,159.94,0.8256375]
[1724650043547,1.09288009,159.98,159.94,0.8256375]
[1724650046662,6.2505,159.99,159.94,0.8256375]
[1724650047246,1.09288009,159.98,159.94,0.8256375]
[1724650047446,1.09288009,159.99,159.94,0.8256375]
[1724650047783,22.1725,160.0,159.94,0.8256375]
[1724650048457,1.09288009,159.99,159.94,0.8256375]
[1724650051062,1.09288009,159.98,159.94,0.8256375]
[1724650051774,1.09288009,159.99,159.94,0.8256375]
[1724650052273,22.1725,160.0,159.94,0.8256375]
[1724650052578,15.5307,160.0,159.94,0.8256375]
[1724650068086,15.5307,160.0,159.94,12.84345639]
[1724650068758,15.5307,160.0,159.95,45.0]
[1724650070359,15.5307,160.0,159.94,0.8256375]
[1724650073900,15.5307,160.0,159.95,13.26792826]
[1724650074180,15.5307,160.0,159.95,12.01781889]
[1724650075578,22.0606,160.04,159.97,12.01781889]
[1724650075893,22.0606,160.04,159.99,12.01781889]
[1724650080299,22.0606,160.04,159.94,0.8256375]
[1724650080300,22.0606,160.04,159.97,12.01781889]
[1724650080584,23.15348009,160.04,159.97,12.01781889]
[1724650080788,12.01781889,160.03,159.94,0.8256375]
[1724650081005,1.09288009,160.02,159.94,0.8256375]
[1724650081202,1.09288009,160.01,159.94,0.8256375]
[1724650082463,6.2504,159.99,159.94,0.8256375]
[1724650083112,15.4427,159.97,159.94,0.8256375]
[1724650083291,6.2519,159.95,159.94,0.8256375]
[1724650084628,7.34448009,159.96,159.94,0.8256375]
[1724650087018,6.2516,159.96,159.94,0.8256375]
[1724650088002,16.53558009,159.97,159.94,0.8256375]
[1724650088794,21.6942,159.97,159.94,0.8256375]
[1724650089200,7.34448009,159.96,159.94,0.8256375]
[1724650089401,1.09288009,159.95,159.94,0.8256375]
[1724650089795,7.34478009,159.95,159.94,0.8256375]
[1724650091236,37.41067313,159.95,159.94,0.8256375]
[1724650091402,6.253,159.93,159.82,45.43939304]
[1724650091598,1.09288009,159.92,159.82,45.43939304]
[1724650092101,7.34598009,159.92,159.82,45.43939304]
[1724650092309,6.2531,159.92,159.83,1.25090832]
[1724650092721,6.2531,159.92,159.82,43.19030136]
[1724650092929,6.2531,159.92,159.83,1.25095691]
[1724650093498,6.2531,159.92,159.83,46.25095691]
[1724650094718,6.2528,159.93,159.83,45.0]
[1724650095223,7.81599739,159.94,159.83,45.0]
[1724650096424,1.56343436,159.93,159.83,45.0]
[1724650097004,1.56343436,159.93,159.84,30.06589304]
[1724650097217,7.81571424,159.94,159.85,45.0]
[1724650098221,6.2528,159.93,159.82,43.19030136]
[1724650098724,29.50001993,159.92,159.81,30.06589304]
[1724650100266,21.6833,159.92,159.83,30.06589304]
[1724650100616,21.6833,159.92,159.84,45.0]
[1724650100934,21.6833,159.96,159.89,30.06589304]
[1724650101450,21.6833,159.96,159.9,45.0]
[1724650102115,15.3287,159.96,159.9,45.0]
[1724650102302,21.1954,160.0,159.91,31.31617515]
[1724650102911,21.1954,160.0,159.92,45.0]
[1724650103307,21.1954,160.0,159.93,1.25021831]
[1724650103512,21.1954,160.0,159.92,45.0]
[1724650104120,15.1291,160.0,159.93,31.3161074]
[1724650104511,15.1291,160.0,159.93,30.06589304]
[1724650104706,16.3245,160.03,159.95,30.06589304]
[1724650105104,1.56244354,160.02,159.95,30.06589304]
[1724650105313,16.3245,160.03,159.95,30.06589304]
[1724650105534,16.3245,160.03,159.96,45.0]
[1724650108822,17.88676795,160.03,159.93,30.06589304]
[1724650109125,24.13586795,160.03,159.93,30.06589304]
[1724650109329,6.2493,160.02,159.93,30.06589304]
[1724650109628,17.88726894,160.03,159.93,30.06589304]
[1724650110735,24.13616894,160.03,159.94,45.0]
[1724650111413,6.2493,160.02,159.91,30.06589304]
[1724650111620,7.81237895,160.01,159.91,30.06589304]
[1724650112015,7.81237895,160.01,159.9,15.4809]
[1724650112217,7.81237895,160.01,159.9,45.54679304]
[1724650112813,7.81237895,160.01,159.91,45.0]
[1724650113720,1.56278022,160.02,159.92,30.06589304]
[1724650113920,16.3245,160.03,159.94,30.06589304]
[1724650114729,16.3245,160.03,159.96,30.06589304]
[1724650114929,16.3245,160.03,159.98,30.06589304]
[1724650115244,16.3245,160.03,159.99,1.24983286]
[1724650116047,16.3245,160.03,159.98,30.06589304]
[1724650117225,16.3245,160.03,159.99,1.24974571]
[1724650117429,16.3245,160.03,160.0,30.06589304]
[1724650117627,16.3245,160.03,160.01,1.24972403]
[1724650117832,16.3245,160.03,160.0,30.06589304]
[1724650118229,12.4477,160.08,160.0,30.06589304]
[1724650118551,16.91952815,160.07,160.0,30.06589304]
[1724650120643,16.91952815,160.07,159.98,30.06589304]
[1724650122651,6.2477,160.06,159.98,30.06589304]
[1724650122836,1.56232013,160.05,159.98,30.06589304]
[1724650123160,7.81113615,160.04,159.94,30.06589304]
[1724650123363,6.2489,160.03,159.94,30.06589304]
[1724650123548,1.56253159,160.02,159.94,30.06589304]
[1724650124062,15.0872,160.01,159.94,30.06589304]
[1724650124925,15.0872,160.01,159.92,30.06589304]
[1724650125125,1.56275548,160.0,159.92,30.06589304]
[1724650125341,15.0872,160.01,159.92,30.06589304]
[1724650126364,16.64995601,160.01,159.92,30.06589304]
[1724650127531,15.0872,160.01,159.94,30.06589304]
[1724650127853,15.0872,160.01,159.95,45.0]
[1724650128027,16.64971254,160.01,159.94,30.06589304]
[1724650128666,15.0872,160.01,159.94,30.06589304]
[1724650129346,15.0872,160.01,159.96,30.06589304]